[Event "Late-Titled-Tuesday-Blitz-February-20-2024"]
[Site "Chess.com"]
[Date "2024.02.20"]
[Round "6"]
[White "chessydotcom"]
[Black "pr1105"]
[Result "0-1"]
[WhiteElo "2106"]
[BlackElo "2340"]
[TimeControl "180+1"]
[EndTime "15:04:40 PST"]
[Termination "pr1105 won by resignation"]

1. e4 {[%clk 0:03:00.9]} 1... e5 {[%clk 0:02:58.6]} 2. Nf3 {[%clk 0:03:00]} 2...
Nc6 {[%clk 0:02:55.7]} 3. Bc4 {[%clk 0:02:59.7]} 3... Bc5 {[%clk 0:02:52.4]} 4.
d3 {[%clk 0:02:58.7]} 4... Nf6 {[%clk 0:02:50.8]} 5. Nc3 {[%clk 0:02:59]} 5...
a6 {[%clk 0:02:48.5]} 6. Bg5 {[%clk 0:02:56.8]} 6... h6 {[%clk 0:02:47.3]} 7.
Bxf6 {[%clk 0:02:52.6]} 7... Qxf6 {[%clk 0:02:48.2]} 8. Nd5 {[%clk 0:02:52.8]}
8... Qd8 {[%clk 0:02:48.6]} 9. c3 {[%clk 0:02:53.4]} 9... d6 {[%clk 0:02:47.5]}
10. Qd2 {[%clk 0:02:48.4]} 10... O-O {[%clk 0:02:39.7]} 11. O-O {[%clk
0:02:46.3]} 11... Bg4 {[%clk 0:02:35.5]} 12. Ne1 {[%clk 0:02:41.8]} 12... Na5
{[%clk 0:02:04.1]} 13. Kh1 {[%clk 0:02:28.5]} 13... Be6 {[%clk 0:01:28.3]} 14.
b4 {[%clk 0:02:19.8]} 14... Nxc4 {[%clk 0:01:28.3]} 15. dxc4 {[%clk 0:02:20.1]}
15... Ba7 {[%clk 0:01:28.8]} 16. Nc2 {[%clk 0:02:00.7]} 16... f5 {[%clk
0:01:08.8]} 17. exf5 {[%clk 0:01:57.5]} 17... Rxf5 {[%clk 0:01:08.7]} 18. Rae1
{[%clk 0:01:50.5]} 18... Qd7 {[%clk 0:00:57.4]} 19. f4 {[%clk 0:01:40.1]} 19...
Raf8 {[%clk 0:00:54.1]} 20. Qe2 {[%clk 0:01:28.1]} 20... Bxd5 {[%clk 0:00:50]}
21. cxd5 {[%clk 0:01:26.6]} 21... Rxf4 {[%clk 0:00:50.2]} 22. Rxf4 {[%clk
0:01:25.3]} 22... Rxf4 {[%clk 0:00:51.1]} 23. g3 {[%clk 0:01:22.8]} 23... Rf2
{[%clk 0:00:49.6]} 24. Qh5 {[%clk 0:00:48.5]} 24... Rxc2 {[%clk 0:00:45.2]} 25.
Rf1 {[%clk 0:00:48.5]} 25... Rf2 {[%clk 0:00:39.9]} 0-1

[Event "Late-Titled-Tuesday-Blitz-February-20-2024"]
[Site "Chess.com"]
[Date "2024.02.20"]
[Round "6"]
[White "davigator"]
[Black "Statham_01"]
[Result "0-1"]
[WhiteElo "2399"]
[BlackElo "2577"]
[TimeControl "180+1"]
[EndTime "15:04:47 PST"]
[Termination "Statham_01 won by resignation"]

1. e4 {[%clk 0:03:00.9]} 1... e5 {[%clk 0:02:59.1]} 2. Nf3 {[%clk 0:02:59.5]}
2... Nf6 {[%clk 0:02:58.6]} 3. Nxe5 {[%clk 0:02:59]} 3... Nc6 {[%clk 0:02:58.5]}
4. Nf3 {[%clk 0:02:58.3]} 4... Nxe4 {[%clk 0:02:58.4]} 5. d3 {[%clk 0:02:57.7]}
5... Nf6 {[%clk 0:02:58.6]} 6. d4 {[%clk 0:02:57.9]} 6... d5 {[%clk 0:02:59.1]}
7. Bd3 {[%clk 0:02:57.8]} 7... Bg4 {[%clk 0:02:59]} 8. c3 {[%clk 0:02:57.2]}
8... Bd6 {[%clk 0:02:59.1]} 9. O-O {[%clk 0:02:57.2]} 9... O-O {[%clk
0:02:59.4]} 10. Bg5 {[%clk 0:02:56.1]} 10... h6 {[%clk 0:02:58.2]} 11. Bh4
{[%clk 0:02:56]} 11... Re8 {[%clk 0:02:57.2]} 12. Nbd2 {[%clk 0:02:55.2]} 12...
Nb8 {[%clk 0:02:53.6]} 13. Qb3 {[%clk 0:02:54.3]} 13... Nbd7 {[%clk 0:02:43.2]}
14. Bg3 {[%clk 0:02:50.2]} 14... Bxg3 {[%clk 0:02:41.4]} 15. hxg3 {[%clk
0:02:50]} 15... Rb8 {[%clk 0:02:35.8]} 16. Rfe1 {[%clk 0:02:49.4]} 16... c6
{[%clk 0:02:25.7]} 17. Ne5 {[%clk 0:02:49.3]} 17... Qc7 {[%clk 0:02:22.7]} 18.
f3 {[%clk 0:02:45.5]} 18... Be6 {[%clk 0:02:13.2]} 19. Kf2 {[%clk 0:02:40]}
19... c5 {[%clk 0:02:07.8]} 20. Nxd7 {[%clk 0:02:36]} 20... Bxd7 {[%clk
0:02:05]} 21. Bf1 {[%clk 0:02:34.5]} 21... Nh5 {[%clk 0:01:55.7]} 22. f4 {[%clk
0:02:32.1]} 22... Nf6 {[%clk 0:01:44.6]} 23. Be2 {[%clk 0:02:29.2]} 23... Bg4
{[%clk 0:01:31.8]} 24. Bf3 {[%clk 0:02:28.8]} 24... b5 {[%clk 0:01:18.1]} 25.
Rxe8+ {[%clk 0:02:18.3]} 25... Rxe8 {[%clk 0:01:19]} 26. Qxb5 {[%clk 0:02:16.5]}
26... cxd4 {[%clk 0:01:13.4]} 27. Rc1 {[%clk 0:02:05]} 27... Qe7 {[%clk
0:01:03.7]} 28. Nf1 {[%clk 0:01:52.9]} 28... dxc3 {[%clk 0:00:56.6]} 29. bxc3
{[%clk 0:01:52.2]} 29... h5 {[%clk 0:00:49.4]} 30. Qd3 {[%clk 0:01:46.9]} 30...
Rb8 {[%clk 0:00:35]} 31. Re1 {[%clk 0:01:36.5]} 31... Qc5+ {[%clk 0:00:33.6]}
32. Qd4 {[%clk 0:01:35.4]} 32... Rb2+ {[%clk 0:00:33.8]} 33. Re2 {[%clk
0:01:34.9]} 33... Ne4+ {[%clk 0:00:31.6]} 34. Bxe4 {[%clk 0:01:33.5]} 34...
Rxe2+ {[%clk 0:00:31.1]} 35. Kg1 {[%clk 0:01:33.5]} 35... Qxd4+ {[%clk
0:00:31.1]} 36. cxd4 {[%clk 0:01:32.7]} 36... dxe4 {[%clk 0:00:32]} 37. Nh2
{[%clk 0:01:31.6]} 37... e3 {[%clk 0:00:30.6]} 38. Kf1 {[%clk 0:01:31.6]} 38...
Rf2+ {[%clk 0:00:29.8]} 39. Kg1 {[%clk 0:01:30.1]} 39... Rd2 {[%clk 0:00:29.6]}
40. Nxg4 {[%clk 0:01:27.6]} 40... Rd1+ {[%clk 0:00:30.5]} 41. Kh2 {[%clk
0:01:27.7]} 41... hxg4 {[%clk 0:00:31.3]} 0-1

[Event "Late-Titled-Tuesday-Blitz-February-20-2024"]
[Site "Chess.com"]
[Date "2024.02.20"]
[Round "6"]
[White "dropstoneDP"]
[Black "Kosak12"]
[Result "1-0"]
[WhiteElo "3011"]
[BlackElo "2813"]
[TimeControl "180+1"]
[EndTime "15:04:52 PST"]
[Termination "dropstoneDP won by resignation"]

1. e4 {[%clk 0:03:00.9]} 1... c6 {[%clk 0:02:44.7]} 2. d4 {[%clk 0:02:59.4]}
2... d5 {[%clk 0:02:45]} 3. Nd2 {[%clk 0:02:58.6]} 3... dxe4 {[%clk 0:02:44.5]}
4. Nxe4 {[%clk 0:02:59.5]} 4... Bf5 {[%clk 0:02:44.3]} 5. Ng3 {[%clk 0:02:57.2]}
5... Bg6 {[%clk 0:02:44.7]} 6. Nf3 {[%clk 0:02:53.9]} 6... e6 {[%clk 0:02:40.1]}
7. Bd3 {[%clk 0:02:53.2]} 7... Bxd3 {[%clk 0:02:38.1]} 8. Qxd3 {[%clk
0:02:54.1]} 8... Nf6 {[%clk 0:02:37.7]} 9. O-O {[%clk 0:02:51.8]} 9... Nbd7
{[%clk 0:02:35.9]} 10. c4 {[%clk 0:02:51.3]} 10... Be7 {[%clk 0:02:35.7]} 11.
Qe2 {[%clk 0:02:50.6]} 11... O-O {[%clk 0:02:35.1]} 12. Rd1 {[%clk 0:02:49.9]}
12... Qc7 {[%clk 0:02:34.7]} 13. Bd2 {[%clk 0:02:42.9]} 13... Rfd8 {[%clk
0:02:22]} 14. Rac1 {[%clk 0:02:42.4]} 14... Bd6 {[%clk 0:02:15.4]} 15. Bg5
{[%clk 0:02:31.8]} 15... Re8 {[%clk 0:02:09.3]} 16. Bxf6 {[%clk 0:02:29.9]}
16... Nxf6 {[%clk 0:02:08.2]} 17. Ne4 {[%clk 0:02:30.4]} 17... Nxe4 {[%clk
0:01:43.7]} 18. Qxe4 {[%clk 0:02:31.3]} 18... h6 {[%clk 0:01:37.2]} 19. g3
{[%clk 0:02:30.9]} 19... Rad8 {[%clk 0:01:37]} 20. Kg2 {[%clk 0:02:30.8]} 20...
Bf8 {[%clk 0:01:31.7]} 21. Rd3 {[%clk 0:02:29.4]} 21... c5 {[%clk 0:01:20.1]}
22. Rcd1 {[%clk 0:02:26.7]} 22... cxd4 {[%clk 0:01:20]} 23. Rxd4 {[%clk
0:02:26.6]} 23... Rxd4 {[%clk 0:01:14.5]} 24. Qxd4 {[%clk 0:02:27.5]} 24... a6
{[%clk 0:01:07.1]} 25. Qd7 {[%clk 0:02:26.1]} 25... Rc8 {[%clk 0:01:04.7]} 26.
Qxc7 {[%clk 0:02:25]} 26... Rxc7 {[%clk 0:01:05.2]} 27. b3 {[%clk 0:02:25.4]}
27... Be7 {[%clk 0:00:51]} 28. a4 {[%clk 0:02:06.2]} 28... Kf8 {[%clk
0:00:47.7]} 29. h4 {[%clk 0:02:03.6]} 29... h5 {[%clk 0:00:40]} 30. Kf1 {[%clk
0:02:03.6]} 30... Ke8 {[%clk 0:00:39.7]} 31. Ke2 {[%clk 0:02:04]} 31... Bc5
{[%clk 0:00:33.7]} 32. Ne5 {[%clk 0:02:01.8]} 32... Ke7 {[%clk 0:00:33.3]} 33.
Nd3 {[%clk 0:02:01.1]} 33... Bd6 {[%clk 0:00:32.4]} 34. Rc1 {[%clk 0:01:58]}
34... b6 {[%clk 0:00:30.1]} 35. a5 {[%clk 0:01:55.8]} 35... Bc5 {[%clk
0:00:13.8]} 36. b4 {[%clk 0:01:55.3]} 36... Bd4 {[%clk 0:00:14.1]} 37. axb6
{[%clk 0:01:55.7]} 37... Bxb6 {[%clk 0:00:15]} 38. c5 {[%clk 0:01:55.9]} 38...
Ba7 {[%clk 0:00:11.3]} 39. Ra1 {[%clk 0:01:56.5]} 39... f6 {[%clk 0:00:04.8]}
40. Rxa6 {[%clk 0:01:56]} 40... e5 {[%clk 0:00:05.3]} 41. Nb2 {[%clk 0:01:53.1]}
41... Rb7 {[%clk 0:00:04.4]} 42. Nc4 {[%clk 0:01:51.2]} 42... Kd8 {[%clk
0:00:02.9]} 43. Na5 {[%clk 0:01:51.3]} 1-0

[Event "Late-Titled-Tuesday-Blitz-February-20-2024"]
[Site "Chess.com"]
[Date "2024.02.20"]
[Round "6"]
[White "chegueps"]
[Black "ninguno46"]
[Result "0-1"]
[WhiteElo "2654"]
[BlackElo "2530"]
[TimeControl "180+1"]
[EndTime "15:04:56 PST"]
[Termination "ninguno46 won by resignation"]

1. d4 {[%clk 0:03:00.9]} 1... Nf6 {[%clk 0:02:46]} 2. Nf3 {[%clk 0:03:00.5]}
2... e6 {[%clk 0:02:45.7]} 3. Bg5 {[%clk 0:02:59.6]} 3... h6 {[%clk 0:02:41.5]}
4. Bh4 {[%clk 0:02:59]} 4... c5 {[%clk 0:02:36.8]} 5. e3 {[%clk 0:02:58.4]} 5...
Be7 {[%clk 0:02:30.5]} 6. Nbd2 {[%clk 0:02:57.8]} 6... b6 {[%clk 0:02:30.1]} 7.
Bd3 {[%clk 0:02:56.7]} 7... Bb7 {[%clk 0:02:29.5]} 8. O-O {[%clk 0:02:55.8]}
8... O-O {[%clk 0:02:26.2]} 9. c3 {[%clk 0:02:53.6]} 9... Nc6 {[%clk 0:02:21.8]}
10. a4 {[%clk 0:02:52.4]} 10... cxd4 {[%clk 0:02:20.2]} 11. exd4 {[%clk
0:02:52.1]} 11... d6 {[%clk 0:02:13.9]} 12. Qe2 {[%clk 0:02:51.6]} 12... Re8
{[%clk 0:02:12.9]} 13. Rfe1 {[%clk 0:02:51.1]} 13... Nb8 {[%clk 0:02:07.4]} 14.
Nb3 {[%clk 0:02:37]} 14... a6 {[%clk 0:02:04.8]} 15. Nbd2 {[%clk 0:02:26.4]}
15... Nbd7 {[%clk 0:02:03.8]} 16. h3 {[%clk 0:02:25.7]} 16... Qc7 {[%clk
0:02:03.2]} 17. Nc4 {[%clk 0:02:24]} 17... b5 {[%clk 0:01:50.3]} 18. axb5 {[%clk
0:02:19.3]} 18... axb5 {[%clk 0:01:50]} 19. Ne3 {[%clk 0:02:19.9]} 19... b4
{[%clk 0:01:49.2]} 20. cxb4 {[%clk 0:02:16.8]} 20... Qb6 {[%clk 0:01:46.1]} 21.
b5 {[%clk 0:02:14.4]} 21... Rxa1 {[%clk 0:01:43.8]} 22. Rxa1 {[%clk 0:02:14.2]}
22... Bxf3 {[%clk 0:01:43.3]} 23. Qxf3 {[%clk 0:02:14.5]} 23... Qxd4 {[%clk
0:01:43.3]} 24. Ra8 {[%clk 0:01:53.5]} 24... Qxh4 {[%clk 0:01:18.6]} 25. Rxe8+
{[%clk 0:01:49.3]} 25... Nxe8 {[%clk 0:01:18.2]} 26. Qc6 {[%clk 0:01:50.2]}
26... Nef6 {[%clk 0:01:10.6]} 27. b6 {[%clk 0:01:42.8]} 27... Qd4 {[%clk
0:01:07.4]} 28. Qc8+ {[%clk 0:00:43.8]} 28... Bf8 {[%clk 0:01:06.1]} 29. b7
{[%clk 0:00:43.7]} 29... Qxd3 {[%clk 0:01:03.4]} 30. Nc4 {[%clk 0:00:44.6]}
30... Qb3 {[%clk 0:00:46.2]} 31. Nxd6 {[%clk 0:00:35.8]} 31... Qd1+ {[%clk
0:00:46.1]} 0-1

[Event "Late-Titled-Tuesday-Blitz-February-20-2024"]
[Site "Chess.com"]
[Date "2024.02.20"]
[Round "6"]
[White "wild3000"]
[Black "cthake"]
[Result "1-0"]
[WhiteElo "2394"]
[BlackElo "1802"]
[TimeControl "180+1"]
[EndTime "15:04:56 PST"]
[Termination "wild3000 won on time"]

1. d4 {[%clk 0:02:37.6]} 1... e6 {[%clk 0:02:59.4]} 2. g3 {[%clk 0:02:37.5]}
2... f5 {[%clk 0:02:58.8]} 3. Bg2 {[%clk 0:02:38]} 3... Nf6 {[%clk 0:02:57.5]}
4. c4 {[%clk 0:02:38.5]} 4... Be7 {[%clk 0:02:48.3]} 5. Nc3 {[%clk 0:02:36.3]}
5... O-O {[%clk 0:02:46.6]} 6. e3 {[%clk 0:02:25.8]} 6... c6 {[%clk 0:02:46]} 7.
d5 {[%clk 0:02:22.9]} 7... cxd5 {[%clk 0:02:37.4]} 8. cxd5 {[%clk 0:02:22.8]}
8... Bb4 {[%clk 0:01:55]} 9. Ne2 {[%clk 0:02:20.9]} 9... e5 {[%clk 0:01:50.9]}
10. d6 {[%clk 0:02:13.4]} 10... Qb6 {[%clk 0:01:44.7]} 11. O-O {[%clk
0:02:07.7]} 11... Bxd6 {[%clk 0:01:27.9]} 12. a4 {[%clk 0:01:46.9]} 12... Bb4
{[%clk 0:01:16.3]} 13. Nd5 {[%clk 0:01:43]} 13... Qc5 {[%clk 0:01:07.7]} 14.
Nxf6+ {[%clk 0:01:33.6]} 14... Rxf6 {[%clk 0:01:07.4]} 15. Bd2 {[%clk
0:01:32.3]} 15... Bxd2 {[%clk 0:00:59.7]} 16. Qxd2 {[%clk 0:01:32.3]} 16... Nc6
{[%clk 0:00:56.8]} 17. Rfc1 {[%clk 0:01:28.3]} 17... Qe7 {[%clk 0:00:55.7]} 18.
a5 {[%clk 0:01:10.4]} 18... Rd6 {[%clk 0:00:39]} 19. Qc2 {[%clk 0:01:08]} 19...
Qf6 {[%clk 0:00:27.6]} 20. Qc5 {[%clk 0:01:05.6]} 20... h6 {[%clk 0:00:20.3]}
21. Nc3 {[%clk 0:01:04.9]} 21... Kh7 {[%clk 0:00:15.3]} 22. Nb5 {[%clk
0:01:04.6]} 22... Rd2 {[%clk 0:00:12.8]} 23. Qc3 {[%clk 0:01:04.5]} 23... Re2
{[%clk 0:00:05.2]} 24. Bf1 {[%clk 0:01:04.4]} 1-0

[Event "Late-Titled-Tuesday-Blitz-February-20-2024"]
[Site "Chess.com"]
[Date "2024.02.20"]
[Round "6"]
[White "Oleksandr_Bortnyk"]
[Black "LuckyTiger"]
[Result "1-0"]
[WhiteElo "3070"]
[BlackElo "2773"]
[TimeControl "180+1"]
[EndTime "15:04:59 PST"]
[Termination "Oleksandr_Bortnyk won on time"]

1. e4 {[%clk 0:03:00.9]} 1... c5 {[%clk 0:02:57.3]} 2. c3 {[%clk 0:03:00.6]}
2... d5 {[%clk 0:02:55.2]} 3. exd5 {[%clk 0:03:01.5]} 3... Qxd5 {[%clk
0:02:55.9]} 4. d4 {[%clk 0:03:01.9]} 4... Nf6 {[%clk 0:02:56.4]} 5. Be3 {[%clk
0:03:01.7]} 5... cxd4 {[%clk 0:02:43.4]} 6. cxd4 {[%clk 0:03:02.6]} 6... e6
{[%clk 0:02:44]} 7. Nc3 {[%clk 0:03:01.2]} 7... Qa5 {[%clk 0:02:43.7]} 8. Bd3
{[%clk 0:02:59.5]} 8... Nc6 {[%clk 0:02:43.8]} 9. Nf3 {[%clk 0:02:59.6]} 9...
Be7 {[%clk 0:02:41.3]} 10. a3 {[%clk 0:02:59.1]} 10... O-O {[%clk 0:02:41]} 11.
O-O {[%clk 0:02:58.8]} 11... Bd7 {[%clk 0:02:35.4]} 12. b4 {[%clk 0:02:58]}
12... Qd8 {[%clk 0:02:26.6]} 13. h3 {[%clk 0:02:57.2]} 13... Rc8 {[%clk
0:02:14.9]} 14. Rc1 {[%clk 0:02:55]} 14... h6 {[%clk 0:02:05.2]} 15. Qe2 {[%clk
0:02:52.8]} 15... Bd6 {[%clk 0:02:03]} 16. Rfd1 {[%clk 0:02:51.9]} 16... Ne7
{[%clk 0:02:02.6]} 17. Ne5 {[%clk 0:02:49.7]} 17... Bc6 {[%clk 0:01:59.4]} 18.
Nxc6 {[%clk 0:02:40.9]} 18... Rxc6 {[%clk 0:01:57.9]} 19. Qf3 {[%clk 0:02:37.8]}
19... Bb8 {[%clk 0:01:55.7]} 20. Bxh6 {[%clk 0:02:35.7]} 20... Qc7 {[%clk
0:01:39]} 21. g3 {[%clk 0:02:30.5]} 21... gxh6 {[%clk 0:01:20.3]} 22. Qxf6
{[%clk 0:02:28.4]} 22... Rxc3 {[%clk 0:01:20.6]} 23. Rxc3 {[%clk 0:02:25.3]}
23... Qxc3 {[%clk 0:01:20.8]} 24. Qxe7 {[%clk 0:02:13.8]} 24... Qb3 {[%clk
0:00:56.3]} 25. Be2 {[%clk 0:01:58.4]} 25... Qd5 {[%clk 0:00:24.7]} 26. Qf6
{[%clk 0:01:55.6]} 26... Qg5 {[%clk 0:00:24.7]} 27. Qf3 {[%clk 0:01:54.7]} 27...
Qd5 {[%clk 0:00:13.4]} 28. Qxd5 {[%clk 0:01:50.8]} 28... exd5 {[%clk 0:00:14.3]}
29. Bf3 {[%clk 0:01:51.1]} 29... Rd8 {[%clk 0:00:15]} 30. Rc1 {[%clk 0:01:50.3]}
30... a6 {[%clk 0:00:12.6]} 31. Bxd5 {[%clk 0:01:47.9]} 31... Ba7 {[%clk
0:00:09.3]} 32. Bxb7 {[%clk 0:01:47]} 32... Rxd4 {[%clk 0:00:09.1]} 33. Rc3
{[%clk 0:01:33]} 33... Rd2 {[%clk 0:00:06.1]} 34. Rf3 {[%clk 0:01:32.1]} 34...
Rd6 {[%clk 0:00:04.8]} 35. Rf5 {[%clk 0:01:24.2]} 35... Kg7 {[%clk 0:00:04.3]}
36. Kg2 {[%clk 0:01:23.9]} 1-0

[Event "Late-Titled-Tuesday-Blitz-February-20-2024"]
[Site "Chess.com"]
[Date "2024.02.20"]
[Round "6"]
[White "Alex_Sahakyan2006"]
[Black "steepedgames"]
[Result "1-0"]
[WhiteElo "2825"]
[BlackElo "2559"]
[TimeControl "180+1"]
[EndTime "15:05:05 PST"]
[Termination "Alex_Sahakyan2006 won by checkmate"]

1. e4 {[%clk 0:03:00.9]} 1... e6 {[%clk 0:02:59.6]} 2. d4 {[%clk 0:03:00.3]}
2... d5 {[%clk 0:03:00.2]} 3. exd5 {[%clk 0:03:01.2]} 3... exd5 {[%clk
0:02:59.6]} 4. Nc3 {[%clk 0:03:01.2]} 4... Nf6 {[%clk 0:02:58.3]} 5. Nf3 {[%clk
0:02:56.5]} 5... Bd6 {[%clk 0:02:54.1]} 6. Bd3 {[%clk 0:02:56.7]} 6... O-O
{[%clk 0:02:44.7]} 7. Ne2 {[%clk 0:02:56.6]} 7... Bg4 {[%clk 0:02:34.8]} 8. Ng3
{[%clk 0:02:56.4]} 8... Re8+ {[%clk 0:02:33.2]} 9. Be3 {[%clk 0:02:56.8]} 9...
Bf4 {[%clk 0:02:30.7]} 10. O-O {[%clk 0:02:40.6]} 10... Bxe3 {[%clk 0:02:17.4]}
11. fxe3 {[%clk 0:02:41.5]} 11... Nbd7 {[%clk 0:02:04.9]} 12. h3 {[%clk
0:02:37.6]} 12... Bh5 {[%clk 0:01:46.7]} 13. Nxh5 {[%clk 0:02:14.2]} 13... Nxh5
{[%clk 0:01:47.6]} 14. Ne5 {[%clk 0:02:14.6]} 14... Nxe5 {[%clk 0:01:40.8]} 15.
Bxh7+ {[%clk 0:02:09.8]} 15... Kxh7 {[%clk 0:01:39.8]} 16. Qxh5+ {[%clk
0:02:10.2]} 16... Kg8 {[%clk 0:01:40]} 17. dxe5 {[%clk 0:02:11.1]} 17... g6
{[%clk 0:01:27.2]} 18. Qf3 {[%clk 0:02:06]} 18... Qd7 {[%clk 0:01:24]} 19. Qf4
{[%clk 0:01:46.4]} 19... Re6 {[%clk 0:01:17.3]} 20. Rf3 {[%clk 0:01:32.9]} 20...
Rae8 {[%clk 0:01:12.7]} 21. Raf1 {[%clk 0:01:32.4]} 21... R8e7 {[%clk
0:01:08.4]} 22. Qd4 {[%clk 0:01:25.6]} 22... b6 {[%clk 0:00:56.9]} 23. Rf6
{[%clk 0:01:19.1]} 23... c5 {[%clk 0:00:54.9]} 24. Qf4 {[%clk 0:01:09.9]} 24...
a5 {[%clk 0:00:23.4]} 25. Qh6 {[%clk 0:00:54.2]} 25... a4 {[%clk 0:00:18.4]} 26.
R1f4 {[%clk 0:00:52.7]} 26... Rxe5 {[%clk 0:00:08.3]} 27. Rxg6+ {[%clk
0:00:52.1]} 27... fxg6 {[%clk 0:00:08]} 28. Rf8# {[%clk 0:00:53]} 1-0

[Event "Late-Titled-Tuesday-Blitz-February-20-2024"]
[Site "Chess.com"]
[Date "2024.02.20"]
[Round "6"]
[White "jodarmarlon1985"]
[Black "kibromNNN"]
[Result "1-0"]
[WhiteElo "2232"]
[BlackElo "1736"]
[TimeControl "180+1"]
[EndTime "15:05:06 PST"]
[Termination "jodarmarlon1985 won by checkmate"]

1. e4 {[%clk 0:03:00.9]} 1... e5 {[%clk 0:02:58.2]} 2. Nf3 {[%clk 0:03:01.1]}
2... Nc6 {[%clk 0:02:57]} 3. Bb5 {[%clk 0:03:01.2]} 3... Nf6 {[%clk 0:02:53.9]}
4. d3 {[%clk 0:03:01]} 4... d6 {[%clk 0:02:50.5]} 5. h3 {[%clk 0:02:59.1]} 5...
a6 {[%clk 0:02:49.5]} 6. Bxc6+ {[%clk 0:02:52.8]} 6... bxc6 {[%clk 0:02:49.6]}
7. c4 {[%clk 0:02:53.7]} 7... Be7 {[%clk 0:02:44.6]} 8. Nc3 {[%clk 0:02:53.4]}
8... h6 {[%clk 0:02:42.2]} 9. O-O {[%clk 0:02:53.2]} 9... O-O {[%clk 0:02:38.8]}
10. d4 {[%clk 0:02:50.7]} 10... exd4 {[%clk 0:02:33.4]} 11. Nxd4 {[%clk
0:02:51.6]} 11... c5 {[%clk 0:02:19.5]} 12. Nc6 {[%clk 0:02:42.8]} 12... Qd7
{[%clk 0:02:17]} 13. Nxe7+ {[%clk 0:02:41.7]} 13... Qxe7 {[%clk 0:02:17.7]} 14.
Re1 {[%clk 0:02:42.1]} 14... Be6 {[%clk 0:02:10.8]} 15. b3 {[%clk 0:02:37.2]}
15... Nd7 {[%clk 0:02:09.4]} 16. Bb2 {[%clk 0:02:32.4]} 16... Ne5 {[%clk
0:02:04.2]} 17. f4 {[%clk 0:02:26.3]} 17... Nc6 {[%clk 0:02:01.5]} 18. f5 {[%clk
0:02:24.1]} 18... Bd7 {[%clk 0:01:57.2]} 19. Nd5 {[%clk 0:02:24]} 19... Qd8
{[%clk 0:01:55.6]} 20. f6 {[%clk 0:02:23.5]} 20... g6 {[%clk 0:01:44.1]} 21. Qd2
{[%clk 0:02:17.5]} 21... Kh7 {[%clk 0:01:42.2]} 22. Bc1 {[%clk 0:02:17]} 22...
g5 {[%clk 0:01:30.6]} 23. h4 {[%clk 0:02:11.6]} 23... Rg8 {[%clk 0:01:24.9]} 24.
hxg5 {[%clk 0:01:24]} 24... hxg5 {[%clk 0:01:25.3]} 25. Qe2 {[%clk 0:01:20.3]}
25... Kg6 {[%clk 0:01:21.4]} 26. Qe3 {[%clk 0:01:10]} 26... Kh6 {[%clk
0:01:15.7]} 27. Kf2 {[%clk 0:01:05.7]} 27... Ne5 {[%clk 0:00:31.1]} 28. Rh1+
{[%clk 0:01:03]} 28... Kg6 {[%clk 0:00:09.5]} 29. Qxg5# {[%clk 0:01:02.5]} 1-0

[Event "Late-Titled-Tuesday-Blitz-February-20-2024"]
[Site "Chess.com"]
[Date "2024.02.20"]
[Round "6"]
[White "yaguigor"]
[Black "ajeale2"]
[Result "1-0"]
[WhiteElo "2638"]
[BlackElo "2495"]
[TimeControl "180+1"]
[EndTime "15:05:10 PST"]
[Termination "yaguigor won on time"]

1. Nf3 {[%clk 0:03:00.9]} 1... d5 {[%clk 0:02:59.3]} 2. c4 {[%clk 0:02:59.9]}
2... e6 {[%clk 0:02:59.2]} 3. d4 {[%clk 0:02:58.6]} 3... Nf6 {[%clk 0:02:59.3]}
4. Nc3 {[%clk 0:02:58.1]} 4... Nbd7 {[%clk 0:02:57.9]} 5. Bf4 {[%clk 0:02:57.9]}
5... a6 {[%clk 0:02:54.6]} 6. c5 {[%clk 0:02:55.8]} 6... a5 {[%clk 0:02:37.7]}
7. h3 {[%clk 0:02:48.9]} 7... b6 {[%clk 0:02:33.8]} 8. Nb5 {[%clk 0:02:41.6]}
8... e5 {[%clk 0:02:15.8]} 9. Nxe5 {[%clk 0:02:36.2]} 9... Ba6 {[%clk
0:02:07.6]} 10. Nc6 {[%clk 0:02:33.6]} 10... Bxb5 {[%clk 0:01:57.1]} 11. Nxd8
{[%clk 0:02:31.7]} 11... Kxd8 {[%clk 0:01:56.6]} 12. e3 {[%clk 0:02:21.2]} 12...
Bxf1 {[%clk 0:01:54.6]} 13. Kxf1 {[%clk 0:02:20.6]} 13... bxc5 {[%clk
0:01:55.2]} 14. dxc5 {[%clk 0:02:19.5]} 14... Bxc5 {[%clk 0:01:55]} 15. Rc1
{[%clk 0:02:18.1]} 15... Ra6 {[%clk 0:01:46.8]} 16. Be5 {[%clk 0:02:07.3]} 16...
c6 {[%clk 0:01:37]} 17. Bxf6+ {[%clk 0:02:04]} 17... gxf6 {[%clk 0:01:35.9]} 18.
e4 {[%clk 0:02:02.8]} 18... d4 {[%clk 0:01:28]} 19. Qb3 {[%clk 0:01:58.8]} 19...
Ke7 {[%clk 0:01:21.7]} 20. Qb7 {[%clk 0:01:56.5]} 20... Rb6 {[%clk 0:01:16.3]}
21. Qc7 {[%clk 0:01:56.6]} 21... Bd6 {[%clk 0:01:14.6]} 22. Qa7 {[%clk
0:01:55.8]} 22... Bb4 {[%clk 0:00:32.8]} 23. a3 {[%clk 0:01:53.4]} 23... Rhb8
{[%clk 0:00:32]} 24. axb4 {[%clk 0:01:52]} 24... R8b7 {[%clk 0:00:32.4]} 25.
Qxa5 {[%clk 0:01:51.2]} 25... Rxb4 {[%clk 0:00:31.3]} 26. g3 {[%clk 0:01:49.1]}
26... Rxb2 {[%clk 0:00:28.7]} 27. Rxc6 {[%clk 0:01:44.8]} 27... d3 {[%clk
0:00:26.6]} 28. Kg2 {[%clk 0:01:41.5]} 28... d2 {[%clk 0:00:17.4]} 29. Qa3+
{[%clk 0:01:40.1]} 29... Kd8 {[%clk 0:00:05.8]} 30. Rd1 {[%clk 0:01:36.3]} 30...
Ne5 {[%clk 0:00:02]} 31. Rxd2+ {[%clk 0:01:29.8]} 31... Rxd2 {[%clk 0:00:01.6]}
32. Qa8+ {[%clk 0:01:28.8]} 32... Kd7 {[%clk 0:00:01.4]} 33. Qxb7+ {[%clk
0:01:28.5]} 33... Ke8 {[%clk 0:00:02.3]} 34. Rc8+ {[%clk 0:01:27.4]} 34... Rd8
{[%clk 0:00:02.4]} 35. Qb5+ {[%clk 0:01:24.2]} 35... Ke7 {[%clk 0:00:02.9]} 36.
Rxd8 {[%clk 0:01:23.1]} 36... Kxd8 {[%clk 0:00:03.8]} 37. f4 {[%clk 0:01:22.2]}
37... Nd7 {[%clk 0:00:03.5]} 38. Qh5 {[%clk 0:01:20.7]} 1-0